bitfinex-derivatives/quotes_BTCF0:USTF0_20241110
["timestamp","ask_amount","ask_price","bid_price","bid_amount"]
[1731270373805,0.1,79600.0,79599.0,0.16452]
[1731270374311,0.1,79600.0,79599.0,0.185635]
[1731270381228,0.1,79600.0,79599.0,0.021115]
[1731270381520,0.1,79600.0,79598.0,0.12153548]
[1731270381732,0.1,79600.0,79595.0,0.16348]
[1731270383313,0.1,79600.0,79598.0,0.12153548]
[1731270385328,0.1,79600.0,79598.0,0.18430948]
[1731270385623,0.1,79600.0,79598.0,0.12153548]
[1731270386123,0.3608,79599.0,79595.0,0.16516]
[1731270386325,0.3608,79599.0,79595.0,0.16348]
[1731270386621,0.3608,79599.0,79594.0,0.02130794]
[1731270386814,0.3608,79599.0,79579.0,0.38592588]
[1731270386815,0.19572326,79598.0,79580.0,0.24068]
[1731270387015,0.423582,79589.0,79580.0,0.24068]
[1731270387214,0.05083098,79588.0,79580.0,0.24068]
[1731270387415,0.3608,79599.0,79585.0,0.12153548]
[1731270387621,0.3608,79605.0,79598.0,0.12153548]
[1731270388320,0.05148925,79599.0,79598.0,0.12153548]
[1731270388511,0.3608,79605.0,79598.0,0.12153548]
[1731270390121,0.423569,79605.0,79598.0,0.12153548]
[1731270390321,0.3608,79605.0,79598.0,0.12153548]
[1731270391026,0.3608,79605.0,79594.0,0.16348]
[1731270391222,0.062771,79603.0,79594.0,0.02134886]
[1731270391414,0.062771,79603.0,79592.0,0.12153548]
[1731270392012,0.3608,79605.0,79592.0,0.12153548]
[1731270392013,0.062771,79602.0,79592.0,0.12153548]
[1731270392219,0.062778,79594.0,79592.0,0.02136142]
[1731270392420,0.3608,79595.0,79591.0,0.16348]
[1731270393423,0.3608,79597.0,79591.0,0.16348]
[1731270393916,0.3608,79597.0,79591.0,0.02116888]
[1731270394231,0.06278,79591.0,79581.0,0.3608]
[1731270394433,0.3608,79590.0,79581.0,0.3608]
[1731270394621,0.3608,79582.0,79573.0,0.0754]
[1731270394822,0.3608,79582.0,79576.0,0.02512905]
[1731270395221,0.062789,79580.0,79573.0,0.02138227]
[1731270395427,0.3608,79582.0,79572.0,0.16348]
[1731270397322,0.3608,79575.0,79572.0,0.18485808]
[1731270398033,0.3608,79575.0,79572.0,0.02137808]
[1731270398229,0.3608,79575.0,79568.0,0.12153548]
[1731270399035,0.3608,79575.0,79565.0,0.00012941]
[1731270399330,0.423599,79567.0,79565.0,0.02079853]
[1731270399632,0.3608,79567.0,79565.0,0.00012941]
[1731270400120,0.423599,79567.0,79565.0,0.00012941]
[1731270400322,0.3608,79567.0,79565.0,0.00012941]
[1731270403431,0.3608,79566.0,79565.0,0.00012941]
[1731270404322,0.3608,79571.0,79565.0,0.55003115]
[1731270404520,0.3608,79571.0,79570.0,0.12153548]
[1731270404726,0.3608,79571.0,79565.0,0.19087115]
[1731270404925,0.3608,79571.0,79565.0,0.00012941]
[1731270406130,0.062798,79568.0,79565.0,0.00012941]
[1731270406329,0.062799,79567.0,79565.0,0.00012941]
[1731270406933,0.48233548,79571.0,79565.0,0.00012941]
[1731270407728,0.3608,79571.0,79565.0,0.00012941]
[1731270408028,0.3608,79571.0,79569.0,0.12153548]
[1731270408230,0.3608,79571.0,79570.0,0.071]
[1731270410033,0.3608,79571.0,79570.0,0.1461]
[1731270413447,0.3608,79571.0,79570.0,0.071]
[1731270422140,0.062799,79567.0,79565.0,0.00012941]
[1731270422941,0.0719,79570.0,79565.0,0.00012941]
[1731270423740,0.3608,79571.0,79565.0,0.00012941]
[1731270424843,0.062799,79568.0,79565.0,0.00012941]
[1731270425044,0.062799,79567.0,79565.0,0.00012941]
[1731270425246,0.3608,79566.0,79565.0,0.00012941]
[1731270430358,0.73784,79566.0,79548.0,0.0712]
[1731270430554,0.3608,79556.0,79548.0,0.0712]
[1731270430748,0.062802,79555.0,79545.0,0.0767]
[1731270430950,0.062806,79551.0,79545.0,0.0767]
[1731270431149,0.062806,79550.0,79545.0,0.0767]
[1731270431355,0.00011355,79549.0,79545.0,0.0767]
[1731270431749,0.00011355,79549.0,79547.0,0.062808]
[1731270432163,0.00011355,79549.0,79547.0,0.18434348]
[1731270432958,0.00011355,79549.0,79547.0,0.54514348]
[1731270433359,0.00011355,79549.0,79548.0,0.18964057]
[1731270433653,0.3608,79556.0,79548.0,0.18964057]
[1731270433861,0.3608,79556.0,79555.0,0.12153548]
[1731270434277,0.423593,79566.0,79555.0,0.12153548]
[1731270434451,0.25667068,79665.0,79565.0,0.48233548]
[1731270434452,0.149,79588.0,79565.0,0.48233548]
[1731270434653,0.3608,79596.0,79565.0,0.48233548]
[1731270434654,0.3608,79586.0,79585.0,0.12153548]
[1731270436554,0.12153548,79601.0,79585.0,0.12153548]
[1731270436555,0.06276,79608.0,79590.0,0.062774]
[1731270436758,0.06276,79608.0,79599.0,0.48233548]
[1731270436956,0.06276,79608.0,79599.0,0.3608]
[1731270437161,0.12153548,79609.0,79593.0,0.12153548]
[1731270437351,0.062771,79595.0,79590.0,0.16252]
[1731270437654,0.3608,79606.0,79590.0,0.16252]
[1731270437655,0.062765,79602.0,79590.0,0.16252]
[1731270437863,0.05057879,79599.0,79590.0,0.16252]
[1731270438054,0.062765,79602.0,79590.0,0.16252]
[1731270438258,0.062766,79601.0,79590.0,0.16252]
[1731270438456,0.162767,79600.0,79590.0,0.16252]
[1731270438854,0.062767,79599.0,79590.0,0.16252]
[1731270439565,0.062768,79598.0,79590.0,0.16252]
[1731270440464,0.062768,79598.0,79592.0,0.3608]
[1731270441058,0.062775,79590.0,79586.0,0.0749]
[1731270446870,0.062781,79582.0,79581.0,0.00164]
[1731270447061,0.48233548,79587.0,79564.0,0.0716]
[1731270447062,0.062794,79565.0,79564.0,0.0716]
[1731270447370,0.062795,79564.0,79552.0,0.3608]
[1731270447558,0.3608,79565.0,79540.0,0.00305687]
[1731270447559,0.12153548,79562.0,79548.0,0.0716]
[1731270447873,0.12153548,79562.0,79547.0,0.02513353]
[1731270447874,0.12153548,79555.0,79547.0,0.02068095]
[1731270448071,0.3608,79556.0,79540.0,0.3608]
[1731270448072,0.062807,79548.0,79540.0,0.3608]
[1731270449561,0.06281,79546.0,79540.0,0.3608]
[1731270449774,0.423611,79544.0,79537.0,0.0716]
[1731270449967,0.423611,79544.0,79542.0,0.02122706]
[1731270451471,0.3608,79544.0,79542.0,0.14276254]
[1731270451658,0.3608,79544.0,79542.0,0.02122706]
[1731270453366,0.3608,79544.0,79543.0,0.12167234]
[1731270453566,0.062803,79554.0,79543.0,0.37325044]
[1731270453777,0.062803,79554.0,79543.0,0.44545044]
[1731270454575,0.3608,79556.0,79545.0,0.062809]
[1731270455570,0.3608,79556.0,79543.0,0.19387234]
[1731270455962,0.423601,79556.0,79544.0,0.18931731]
[1731270456160,0.3608,79556.0,79544.0,0.18931731]
[1731270457669,0.062805,79551.0,79544.0,0.18931731]
[1731270459568,0.062805,79551.0,79548.0,0.3608]
[1731270460372,0.3608,79556.0,79548.0,0.3608]
[1731270460574,0.423601,79556.0,79548.0,0.3608]
[1731270460878,0.062801,79556.0,79548.0,0.3608]
[1731270461068,0.12153548,79558.0,79543.0,0.07233686]
[1731270461269,0.062802,79555.0,79543.0,0.07233686]
[1731270461483,0.12153548,79558.0,79544.0,0.18824174]
[1731270461868,0.12153548,79558.0,79545.0,0.0724]
[1731270462072,0.062804,79552.0,79545.0,0.0724]
[1731270462274,0.062806,79551.0,79545.0,0.0724]
[1731270465582,0.062803,79554.0,79545.0,0.0724]
[1731270466281,0.062804,79552.0,79545.0,0.0724]
[1731270468683,0.18433548,79558.0,79545.0,0.0724]
[1731270468885,0.0628,79557.0,79551.0,0.3608]
[1731270469078,0.12153548,79558.0,79551.0,0.3608]
[1731270469285,0.062802,79555.0,79551.0,0.3608]
[1731270469483,0.062802,79555.0,79545.0,0.0724]
[1731270469677,0.062803,79554.0,79545.0,0.0724]
[1731270474091,0.12153548,79558.0,79545.0,0.0724]
[1731270474390,0.062804,79553.0,79545.0,0.0724]
[1731270475779,0.60387096,79546.0,79525.0,0.39821041]
[1731270476079,0.3608,79547.0,79513.0,0.0723]
[1731270476080,0.12153548,79528.0,79513.0,0.0723]
[1731270476280,0.062832,79518.0,79513.0,0.0723]
[1731270476889,0.0001135,79517.0,79513.0,0.0723]
[1731270477683,0.0001135,79517.0,79516.0,0.3608]
[1731270478984,0.0001135,79517.0,79513.0,0.0723]
[1731270479185,0.0001135,79517.0,79516.0,0.3608]
[1731270479486,0.0001135,79517.0,79513.0,0.0723]
[1731270481690,0.062833,79516.0,79513.0,0.0723]
[1731270482380,0.0001135,79517.0,79513.0,0.0723]
[1731270483086,0.99001551,80732.0,79513.0,0.0723]
[1731270483087,0.062817,79536.0,79516.0,0.48233548]
[1731270483282,0.062813,79541.0,79528.0,0.12153548]
[1731270483493,0.062813,79541.0,79529.0,0.0721]
[1731270483690,0.062813,79541.0,79529.0,0.33475867]
[1731270484097,4.501e-05,79531.0,79529.0,0.33475867]
[1731270484993,0.3608,79550.0,79530.0,0.738]
[1731270485290,0.00064,79561.0,79548.0,0.3608]
[1731270485495,0.00064,79561.0,79557.0,0.3608]
[1731270485496,0.12153548,79561.0,79557.0,0.3608]
[1731270485692,0.0628,79558.0,79549.0,0.0733]
[1731270486410,0.12153548,79561.0,79549.0,0.0733]
[1731270486693,0.18432848,79567.0,79555.0,0.3608]
[1731270486999,0.062788,79574.0,79566.0,0.3608]
[1731270487191,0.12153548,79579.0,79566.0,0.3608]
[1731270487886,0.062784,79578.0,79566.0,0.3608]
[1731270488598,0.12153548,79579.0,79566.0,0.3608]
[1731270488995,0.12153548,79579.0,79566.0,0.36094355]
[1731270490293,0.062786,79576.0,79566.0,0.36094355]
[1731270491202,0.36144,79581.0,79566.0,0.38185792]
[1731270491404,0.00064,79581.0,79578.0,0.062783]
[1731270491708,0.062771,79595.0,79578.0,0.062783]
[1731270491999,0.062771,79595.0,79583.0,0.3608]
[1731270492804,0.12153548,79593.0,79583.0,0.3608]
[1731270493002,0.12153548,79593.0,79577.0,0.23264]
[1731270493192,0.3608,79598.0,79587.0,0.12153548]
[1731270493596,0.3608,79598.0,79583.0,0.3608]
[1731270493801,0.12153548,79594.0,79583.0,0.3608]
[1731270494107,0.062772,79593.0,79583.0,0.3608]
[1731270495598,0.062772,79593.0,79583.0,0.38169471]
[1731270495808,0.12153548,79594.0,79583.0,0.38169471]
[1731270496102,0.12153548,79588.0,79583.0,0.38169471]
[1731270496308,0.18431148,79588.0,79583.0,0.38169471]
[1731270496699,0.3608,79591.0,79583.0,0.38169471]
[1731270496700,0.36144,79591.0,79583.0,0.38169471]
[1731270496895,0.3608,79591.0,79583.0,0.02089471]
[1731270497099,0.3608,79591.0,79581.0,0.062781]
[1731270497310,0.3608,79591.0,79584.0,0.3608]
[1731270498305,0.3608,79591.0,79581.0,0.062781]
[1731270498703,0.3608,79591.0,79581.0,0.08387164]
[1731270499202,0.12153548,79589.0,79581.0,0.08387164]
[1731270500300,0.36144,79598.0,79586.0,0.3608]
[1731270500498,0.3608,79598.0,79590.0,0.062774]
[1731270501199,0.12153548,79597.0,79590.0,0.062774]
[1731270501705,0.12153548,79597.0,79587.0,0.1407]
[1731270502104,0.12153548,79591.0,79588.0,0.18738099]
[1731270502299,0.12153548,79589.0,79577.0,0.0722]
[1731270502629,0.062778,79585.0,79583.0,0.3608]
[1731270502909,0.062788,79573.0,79572.0,0.02513304]
[1731270503301,0.423588,79573.0,79572.0,0.02513304]
[1731270503509,0.062792,79567.0,79553.0,0.1594]
[1731270503900,0.18432748,79567.0,79553.0,0.1594]
[1731270504105,0.18432748,79567.0,79564.0,0.02060522]
[1731270505717,0.54512748,79567.0,79564.0,0.02060522]
[1731270506104,0.54512748,79567.0,79555.0,0.00165]
[1731270506311,0.54512748,79567.0,79555.0,0.064452]
[1731270507806,0.54512748,79567.0,79555.0,0.00165]
[1731270508813,0.3608,79567.0,79557.0,0.02128851]
[1731270509018,0.12153548,79571.0,79559.0,0.3608]
[1731270509324,0.12153548,79571.0,79561.0,0.062797]
[1731270509916,0.12153548,79571.0,79564.0,0.062794]
[1731270511021,0.3608,79567.0,79558.0,0.0628]
[1731270511613,0.3608,79567.0,79559.0,0.3608]
[1731270511809,0.3608,79567.0,79558.0,0.0628]
[1731270512320,0.3608,79567.0,79555.0,0.00165]
[1731270512716,0.3608,79567.0,79562.0,0.02111171]
[1731270525523,0.3618,79567.0,79562.0,0.02111171]
[1731270527129,0.3618,79567.0,79552.0,0.062804]
[1731270527130,0.3618,79567.0,79554.0,0.062802]
[1731270527320,0.062804,79552.0,79537.0,0.02513939]
[1731270527517,0.3608,79551.0,79540.0,0.062814]
[1731270527722,0.3608,79551.0,79535.0,0.0745]
[1731270527723,0.48233548,79543.0,79535.0,0.0745]
[1731270527924,0.12153548,79536.0,79535.0,0.137318]
[1731270528125,0.12153548,79536.0,79534.0,0.00096]
[1731270528126,0.18435348,79536.0,79534.0,0.00096]
[1731270528322,0.00014355,79535.0,79534.0,0.00096]
[1731270528528,0.36094355,79535.0,79534.0,0.00096]
[1731270530629,0.36194355,79535.0,79534.0,0.00096]
[1731270532325,0.73814355,79535.0,79526.0,0.00011529]
[1731270532531,0.54515948,79527.0,79526.0,0.00011529]
[1731270535126,0.54615948,79527.0,79526.0,0.00011529]
[1731270537240,0.54515948,79527.0,79526.0,0.00011529]
[1731270537434,0.54615948,79527.0,79526.0,0.00011529]
[1731270540643,0.062832,79517.0,79516.0,0.0726]
[1731270540843,0.18436748,79517.0,79516.0,0.0726]
[1731270541033,0.062842,79504.0,79503.0,0.0763]
[1731270541233,0.12153548,79504.0,79495.0,0.3608]
[1731270541437,0.18438448,79496.0,79495.0,0.3814793]
[1731270542529,0.062853,79490.0,79489.0,0.1514]
[1731270542730,0.18438848,79490.0,79489.0,0.0763]
[1731270543135,0.18454269,79490.0,79489.0,0.0763]
[1731270543343,0.062855,79488.0,79487.0,0.00012112]
[1731270543642,0.062865,79475.0,79474.0,0.03748081]
[1731270544554,0.062865,79475.0,79471.0,0.0737]
[1731270545345,0.062867,79473.0,79471.0,0.09457846]
[1731270549836,0.062857,79486.0,79471.0,0.09457846]
[1731270549837,0.00015421,79490.0,79472.0,0.37748]
[1731270550042,0.062854,79489.0,79485.0,0.12153548]
[1731270550342,0.062857,79486.0,79482.0,0.36196]
[1731270550545,0.062857,79486.0,79482.0,0.3608]
[1731270551243,0.00015421,79490.0,79482.0,0.3608]
[1731270551443,0.00015421,79490.0,79489.0,0.3608]
[1731270551643,0.12153548,79510.0,79492.0,0.062852]
[1731270551644,0.062842,79505.0,79492.0,0.062852]
[1731270551954,0.12153548,79498.0,79497.0,0.3608]
[1731270552252,0.18438248,79498.0,79497.0,0.3608]
[1731270552451,0.18438248,79498.0,79489.0,0.3608]
[1731270552650,0.1844881,79498.0,79489.0,0.3608]
[1731270552855,0.062848,79497.0,79489.0,0.3608]
[1731270554247,0.00010562,79498.0,79489.0,0.3608]
[1731270554444,0.00010562,79498.0,79491.0,0.12153548]
[1731270555246,0.00010562,79498.0,79497.0,0.12153548]
[1731270555448,0.00010562,79498.0,79489.0,0.3608]
[1731270555449,0.00010562,79498.0,79496.0,0.423648]
[1731270555749,0.062836,79512.0,79500.0,0.062845]
[1731270555945,0.00277,79513.0,79510.0,0.12153548]
[1731270556448,0.00277,79513.0,79511.0,0.062837]
[1731270556639,0.00012013,79512.0,79511.0,0.062837]
[1731270558951,0.00012013,79512.0,79511.0,0.137737]
[1731270559359,0.00012013,79512.0,79511.0,0.70278496]
[1731270559853,0.069611,79544.0,79512.0,0.56169148]
[1731270560045,0.062807,79549.0,79536.0,0.3608]
[1731270560244,0.062808,79547.0,79544.0,0.3608]
[1731270560445,0.04756022,79546.0,79544.0,0.3608]
[1731270560651,0.062803,79554.0,79544.0,0.3608]
[1731270560848,0.04803028,79553.0,79544.0,0.3608]
[1731270561049,0.062805,79552.0,79544.0,0.3608]
[1731270561249,0.0737,79555.0,79544.0,0.3608]
[1731270561250,0.062806,79550.0,79544.0,0.3608]
[1731270562151,0.062806,79550.0,79536.0,0.3608]
[1731270562152,0.062816,79538.0,79536.0,0.3608]
[1731270563450,0.062816,79538.0,79536.0,0.38215346]
[1731270565950,0.062811,79544.0,79536.0,0.38215346]
[1731270566155,0.3608,79552.0,79543.0,0.3608]
[1731270566355,0.423605,79552.0,79543.0,0.3608]
[1731270566554,0.0737,79555.0,79550.0,0.54514048]
[1731270566757,0.0737,79555.0,79550.0,0.48233548]
[1731270566953,0.136502,79555.0,79550.0,0.3608]
[1731270567360,0.0737,79555.0,79550.0,0.3608]
[1731270567557,0.062805,79551.0,79550.0,0.3608]
[1731270567763,0.062811,79544.0,79536.0,0.02135346]
[1731270568062,0.062811,79544.0,79543.0,0.3608]
[1731270568469,0.062806,79550.0,79543.0,0.3608]
[1731270569964,0.0737,79555.0,79544.0,0.06281]
[1731270570767,0.0737,79555.0,79550.0,0.3608]
[1731270571956,0.062803,79554.0,79550.0,0.3608]
[1731270572162,0.062805,79552.0,79550.0,0.3608]
[1731270573156,0.0737,79555.0,79550.0,0.3608]
[1731270573561,0.0737,79555.0,79551.0,0.12153548]
[1731270573759,0.0737,79555.0,79553.0,0.062803]
[1731270573958,0.0737,79555.0,79551.0,0.12153548]
[1731270574155,0.0737,79555.0,79550.0,0.423606]
[1731270574368,0.0737,79555.0,79551.0,0.062804]
[1731270574565,0.062805,79552.0,79545.0,0.06281]
[1731270574759,0.062805,79552.0,79543.0,0.38123033]
[1731270574960,0.062805,79552.0,79543.0,0.44404133]
[1731270575358,0.0737,79555.0,79543.0,0.38123033]
[1731270575563,0.062807,79549.0,79543.0,0.38123033]
[1731270576667,0.062803,79554.0,79543.0,0.44404133]
[1731270577062,0.062804,79553.0,79543.0,0.44404133]
[1731270577270,0.062807,79550.0,79543.0,0.44404133]
[1731270580268,0.0737,79555.0,79543.0,0.38123033]
[1731270580462,0.062811,79545.0,79543.0,0.38123033]
[1731270580871,0.06282,79532.0,79527.0,0.3608]
[1731270581074,0.06282,79532.0,79518.0,0.3608]
[1731270581375,0.062822,79529.0,79506.0,0.3608]
[1731270581571,0.12153548,79519.0,79506.0,0.3608]
[1731270581773,0.3608,79524.0,79506.0,0.3608]
[1731270581974,0.062834,79515.0,79506.0,0.3608]
[1731270582268,0.0718,79523.0,79506.0,0.3608]
[1731270582269,0.06293033,79514.0,79506.0,0.3608]
[1731270582475,0.06293033,79514.0,79513.0,0.3608]
[1731270582476,9.533e-05,79514.0,79513.0,0.3608]
[1731270583073,9.533e-05,79514.0,79513.0,0.73808]
[1731270583470,9.533e-05,79514.0,79513.0,0.9269831]
[1731270584979,0.3608,79540.0,79522.0,0.062828]
[1731270585175,0.062818,79535.0,79530.0,0.12153548]
[1731270585875,0.3608,79540.0,79530.0,0.12153548]
[1731270586075,0.1413,79543.0,79532.0,0.3608]
[1731270586269,0.10834367,79542.0,79536.0,0.12153548]
[1731270586472,0.1413,79543.0,79539.0,0.3608]
[1731270586473,0.062812,79543.0,79539.0,0.3608]
[1731270586671,0.04574499,79542.0,79539.0,0.3608]
[1731270586981,0.062812,79543.0,79539.0,0.3608]
[1731270587177,0.04586869,79542.0,79539.0,0.3608]
[1731270587376,0.062812,79543.0,79539.0,0.3608]
[1731270587377,0.04586869,79541.0,79539.0,0.3608]
[1731270587572,0.04586869,79540.0,79539.0,0.3608]
[1731270589381,0.04586869,79540.0,79537.0,0.3608]
[1731270589676,0.25553158,79551.0,79537.0,0.3608]
[1731270589677,0.062815,79538.0,79537.0,0.3608]
[1731270589883,0.062822,79530.0,79529.0,0.02078449]
[1731270590071,0.062822,79530.0,79524.0,0.3608]
[1731270590072,0.04536382,79530.0,79524.0,0.3608]
[1731270590270,0.062826,79525.0,79524.0,0.3608]
[1731270590475,0.062826,79525.0,79514.0,0.062834]
[1731270590685,0.062827,79524.0,79516.0,0.3608]
[1731270590874,0.062827,79524.0,79517.0,0.062832]
[1731270591074,0.062828,79523.0,79516.0,0.3608]
[1731270591780,0.0706,79529.0,79516.0,0.3608]
[1731270591989,0.062832,79517.0,79516.0,0.3608]
[1731270592880,0.062832,79517.0,79512.0,0.02060441]
[1731270592881,0.062835,79513.0,79512.0,0.02060441]
[1731270593070,0.062838,79510.0,79500.0,0.36090632]
[1731270593278,0.3608,79522.0,79507.0,0.3608]
[1731270593475,0.04414047,79521.0,79507.0,0.3608]
[1731270593673,0.04414047,79520.0,79507.0,0.3608]
[1731270593878,0.04414047,79519.0,79507.0,0.3608]
[1731270594078,0.062837,79511.0,79507.0,0.3608]
[1731270594373,0.04414047,79518.0,79507.0,0.3608]
[1731270594374,0.062838,79510.0,79507.0,0.3608]
[1731270597985,0.062825,79526.0,79507.0,0.3608]
[1731270597986,0.062828,79523.0,79514.0,0.062834]
[1731270598285,0.0733,79532.0,79514.0,0.062834]
[1731270598286,0.062826,79525.0,79522.0,0.3608]
[1731270598479,0.06282,79532.0,79522.0,0.3608]
[1731270598673,0.1476,79539.0,79522.0,0.3608]
[1731270598981,0.1476,79539.0,79519.0,0.3608]
[1731270599391,0.3608,79531.0,79519.0,0.3608]
[1731270599578,0.3608,79531.0,79512.0,0.062836]
[1731270599884,0.062822,79530.0,79515.0,0.3608]
[1731270600184,0.062826,79524.0,79515.0,0.3608]
[1731270600974,0.3608,79531.0,79515.0,0.3608]
[1731270601177,0.062829,79521.0,79515.0,0.3608]
[1731270601481,0.3608,79531.0,79515.0,0.3608]
[1731270601678,0.3608,79531.0,79521.0,0.062829]
[1731270601871,0.062823,79529.0,79521.0,0.062829]
[1731270602185,0.062819,79534.0,79525.0,0.062826]
[1731270602387,0.1476,79539.0,79522.0,0.3608]
[1731270602388,0.0716,79539.0,79522.0,0.3608]
[1731270602578,0.062815,79538.0,79528.0,0.062823]
[1731270602981,0.062815,79538.0,79522.0,0.3608]
[1731270602982,0.0716,79539.0,79523.0,0.062827]
[1731270603182,0.0716,79539.0,79522.0,0.3608]
[1731270603687,0.062822,79530.0,79524.0,0.062826]
[1731270603885,0.062825,79526.0,79522.0,0.3608]
[1731270604085,0.18213158,79536.0,79515.0,0.3821563]
[1731270604086,0.3608,79534.0,79515.0,0.3821563]
[1731270604384,0.062824,79528.0,79515.0,0.3821563]
[1731270604693,0.3608,79534.0,79515.0,0.4449893]
[1731270604887,0.062828,79522.0,79515.0,0.4449893]
[1731270605389,0.18213158,79527.0,79515.0,0.3821563]
[1731270605592,0.0717,79521.0,79506.0,0.423641]
[1731270605779,0.062835,79514.0,79507.0,0.06284]
[1731270606181,0.062837,79511.0,79506.0,0.38215351]
[1731270606382,0.062838,79510.0,79506.0,0.38215351]
[1731270606585,0.062833,79516.0,79506.0,0.38215351]
[1731270606900,0.062835,79514.0,79507.0,0.062839]
[1731270607586,0.36144,79527.0,79513.0,0.3608]
[1731270607786,0.3608,79527.0,79513.0,0.3608]
[1731270607983,0.3608,79527.0,79520.0,0.3608]
[1731270608184,0.062825,79526.0,79520.0,0.3608]
[1731270608582,0.062825,79526.0,79521.0,0.062829]
[1731270608785,0.3608,79527.0,79520.0,0.3608]
[1731270609092,0.211321,79532.0,79520.0,0.3608]
[1731270609093,0.062821,79531.0,79524.0,0.062826]
[1731270609292,0.04516871,79530.0,79524.0,0.062826]
[1731270609494,0.062821,79531.0,79524.0,0.062826]
[1731270609495,0.04520376,79529.0,79524.0,0.062826]
[1731270609680,0.062821,79531.0,79524.0,0.062826]
[1731270610191,0.04519796,79530.0,79524.0,0.062826]
[1731270610404,0.04519963,79529.0,79524.0,0.062826]
[1731270610598,0.062821,79531.0,79524.0,0.062826]
[1731270610885,0.062827,79524.0,79520.0,0.3608]
[1731270611283,0.1485,79532.0,79520.0,0.44481825]
[1731270611481,0.062825,79526.0,79520.0,0.38198925]
[1731270612087,0.00064,79543.0,79525.0,0.18213158]
[1731270612387,0.0754,79549.0,79547.0,0.062808]
[1731270612589,0.0745,79553.0,79547.0,0.062808]
[1731270612795,0.0754,79562.0,79549.0,0.423607]
[1731270613000,0.0745,79561.0,79549.0,0.423607]
[1731270613202,0.17394474,79561.0,79549.0,0.423607]
[1731270613493,0.16224274,79560.0,79549.0,0.3608]
[1731270613693,0.10929557,79560.0,79549.0,0.3608]
[1731270613892,0.062798,79560.0,79549.0,0.3608]
[1731270615698,0.04649125,79559.0,79549.0,0.3608]
[1731270615885,0.062798,79560.0,79549.0,0.3608]
[1731270616082,0.04648403,79559.0,79549.0,0.3608]
[1731270616285,0.062798,79560.0,79549.0,0.3608]
[1731270616690,0.0464747,79559.0,79549.0,0.3608]
[1731270616889,0.062798,79560.0,79549.0,0.3608]
[1731270619592,0.0745,79561.0,79549.0,0.3608]
[1731270619796,0.062801,79556.0,79549.0,0.3608]
[1731270621103,0.0745,79561.0,79549.0,0.7216]
[1731270621401,0.0745,79561.0,79558.0,0.3608]
[1731270621597,0.137298,79561.0,79558.0,0.3608]
[1731270622691,0.062799,79560.0,79558.0,0.3608]
[1731270623491,0.0745,79561.0,79558.0,0.3608]
[1731270623692,0.0754,79562.0,79560.0,0.062798]
[1731270623898,0.00064,79567.0,79566.0,0.062793]
[1731270624093,0.0711,79573.0,79566.0,0.3608]
[1731270624293,0.0711,79573.0,79568.0,0.062791]
[1731270624696,0.0711,79573.0,79566.0,0.3608]
[1731270624892,0.133888,79573.0,79566.0,0.3608]
[1731270627593,0.133888,79573.0,79555.0,0.0692]
[1731270627594,0.062784,79578.0,79559.0,0.18213158]
[1731270627794,0.423584,79578.0,79570.0,0.06279]
[1731270628199,0.423584,79578.0,79572.0,0.3608]
[1731270628403,0.3608,79578.0,79572.0,0.3608]
[1731270628607,0.3608,79588.0,79573.0,0.18213158]
[1731270628898,0.61873158,79597.0,79587.0,0.3608]
[1731270628899,0.1558,79592.0,79587.0,0.3608]
[1731270629101,0.58674,79597.0,79587.0,0.3608]
[1731270629303,0.5861,79597.0,79587.0,0.3608]
[1731270629600,0.062772,79594.0,79587.0,0.3608]
[1731270630601,0.062774,79591.0,79587.0,0.3608]
[1731270631397,0.58674,79597.0,79587.0,0.3608]
[1731270631398,0.51094,79597.0,79587.0,0.3608]
[1731270631593,0.1,79600.0,79587.0,0.3608]
[1731270631594,0.1,79600.0,79591.0,0.1818896]
[1731270631791,0.1,79600.0,79597.0,0.062769]
[1731270631995,0.1,79600.0,79598.0,0.062768]
[1731270632201,0.1,79600.0,79598.0,0.2446576]
[1731270632499,0.1,79600.0,79599.0,0.0715]
[1731270634292,0.1,79600.0,79597.0,0.36196]
[1731270634500,0.1,79600.0,79597.0,0.3608]
[1731270636200,0.162767,79600.0,79597.0,0.02049367]
[1731270636509,0.162767,79600.0,79590.0,0.3608]
[1731270636510,0.062772,79594.0,79590.0,0.3608]
[1731270636801,0.062772,79594.0,79581.0,0.423581]
[1731270637008,0.062772,79594.0,79582.0,0.062781]
[1731270637299,0.062772,79594.0,79583.0,0.06278]
[1731270637508,0.1491,79599.0,79581.0,0.3608]
[1731270637509,0.1491,79599.0,79589.0,0.3608]
[1731270637710,0.04833177,79598.0,79589.0,0.3608]
[1731270637911,0.062768,79598.0,79589.0,0.3608]
[1731270638100,0.10068,79600.0,79597.0,0.3608]
[1731270638297,0.1,79600.0,79597.0,0.3608]
[1731270638996,0.1,79600.0,79598.0,0.062768]
[1731270641213,0.1,79600.0,79597.0,0.3821465]
[1731270644515,0.1,79600.0,79597.0,0.0213465]
[1731270644709,0.062774,79591.0,79589.0,0.3608]
[1731270644903,0.1495,79599.0,79580.0,0.0715]
[1731270645110,0.3608,79594.0,79578.0,0.3608]
[1731270645416,0.062776,79589.0,79578.0,0.3608]
[1731270645717,0.062776,79588.0,79578.0,0.38219922]
[1731270646221,0.3608,79594.0,79578.0,0.38219922]
[1731270646222,0.062775,79590.0,79580.0,0.062782]
[1731270646417,0.3608,79594.0,79580.0,0.062782]
[1731270646614,0.062775,79589.0,79580.0,0.062782]
[1731270646914,0.062775,79589.0,79578.0,0.38219922]
[1731270647119,0.062775,79589.0,79578.0,0.44498222]
[1731270647810,0.062775,79589.0,79580.0,0.062782]
[1731270648317,0.3608,79594.0,79580.0,0.062782]
[1731270648513,0.1495,79599.0,79580.0,0.062782]
[1731270648514,0.062773,79592.0,79580.0,0.062782]
[1731270648725,0.1495,79599.0,79580.0,0.062782]
[1731270648904,0.1495,79599.0,79578.0,0.38219922]
[1731270648905,0.04813433,79598.0,79578.0,0.38219922]